Cogmind - Beta 14 @@@ ROGUE MODE // 2024.08.17 @ 16:39:02 Player: N.W.L Result: Destroyed by G-73 Enforcer with Phase Gun Performance ------------- Evolutions (8) 4000 Regions Visited (27) 5400 Robots Destroyed (151) 755 Value Destroyed (6230) 6230 Prototype IDs (224) 4480 Alien Tech Used (5) 1000 Bonus (15126) 15126 TOTAL SCORE: 36991 Bonus ------- Pacifist 470 High Alert Combat Kills 322 Follower Combat Kills 1333 Entered Garrisons 200 Network Hubs Disabled 400 Met Data Miner 300 Used Data Conduit 3000 Met Zhirov 300 Met R17 at Cetus 500 Found Hidden Lab 3000 Decrypted A0 Command 3000 Met R17 at Research 2000 Pursued by Intercept 1000 Friendly Fire -699 Cogmind --------- Core Integrity 0/1450 Matter 30/300 Energy 90/100 System Corruption 30% Temperature Cool (9) Movement Core (250) Ox4 Location -2/Garrison Parts ------- > --- POWER (1) -------- (None) > --- PROPULSION (2) --- (None) > --- UTILITY (18) ----- Advanced Signal Interpreter AEGIS Remote Shield Improved Hacking Suite Advanced Hacking Suite Authchip [Propulsion] > --- WEAPON (2) ------- (None) > --- INVENTORY (5) ---- Advanced Trap Extractor (4/8 Gamma Bomb) Mini Smartbomb Launcher Guided Remote Datajack Peak State ------------ > --- POWER ------------ Quantum Reactor > --- PROPULSION ------- Centrium Heavy Treads > --- UTILITY ---------- Experimental Power Amplifier Experimental Heat Sink Large Storage Unit Enhanced Optical Array Advanced Signal Interpreter Seismic Detector Experimental Utility Shielding AEGIS Remote Shield Improved Hacking Suite Improved Hacking Suite Improved Hacking Suite Advanced Hacking Suite Experimental Hacking Suite Deep Network Scanner Improved System Shield LC Capacitor > --- WEAPON ----------- Enhanced Nova Cannon Warp Cannon > --- INVENTORY -------- Mini Fusion Reactor Biometal Heavy Treads Advanced Cryofiber Web Seismic Detector Centrium Medium Armor Plating Authchip [Propulsion] Authchip [Propulsion] Advanced Trap Extractor Transdimensional Reconstructor Core Regenerator Mini Smartbomb Launcher Guided Remote Datajack Thunder Hammer Ionic Axe [Rating: 187] Favorites ----------- Power Light Antimatter Reactor Engine Makeshift Power Source Power Core Nuclear Core Reactor Light Antimatter Reactor Propulsion Centrium Heavy Treads Treads Centrium Heavy Treads Leg Carbon-fiber Leg Hover Unit Combat Gravmag System Flight Unit Impulse Thruster Utility Improved Hacking Suite Device Seismic Detector Storage Small Storage Unit Processor Advanced Signal Interpreter Hackware Improved Hacking Suite Protection Centrium Medium Armor Plating Artifact LC Capacitor Weapon Ionic Axe Energy Gun Advanced Beam Rifle Energy Cannon Warp Cannon Ballistic Gun Precision Assault Rifle Launcher Mini Smartbomb Launcher Special Weapon Guided Remote Datajack Impact Weapon Thunder Hammer Slashing Weapon Ionic Axe Special Melee Weapon Datajack Build | -11 -10 -9 -9 -8 -7 -7 -7 -7 -7 -7 -6 -6 -5 -5 -5 -5 -5 -4 -4 -4 -4 -3 -3 -3 -3 -2 -2 ------- Run | Yrd Mat Mat Min Mat Fac Was Fac Low Low Dat Pro Fac Fac Ext Cet Arc Hub Fac Upp Upp Zhi Pro Res Arm Lab Res Gar Slots Evolved 16 | . . 2 . 2 2 . . . . . . 2 2 . . . . 2 . . . . 2 . . 2 . Power . | . . . . . . . . . . . . . . . . . . . . . . . . . . . . Propulsion . | . . . . . . . . . . . . . . . . . . . . . . . . . . . . Utility 16 | . . 2 . 2 2 . . . . . . 2 2 . . . . 2 . . . . 2 . . 2 . Weapon . | . . . . . . . . . . . . . . . . . . . . . . . . . . . . Parts Attached 229 | . . 1 8 10 15 6 17 13 2 . 5 8 4 28 22 10 . 8 2 5 2 2 9 10 13 21 8 Power 12 | . . . . 2 1 . . 1 1 . . . . 3 1 . . 1 . . . . . 1 . 1 . Engine 5 | . . . . 1 . . . . 1 . . . . 2 1 . . . . . . . . . . . . Core 4 | . . . . 1 1 . . 1 . . . . . 1 . . . . . . . . . . . . . Reactor 3 | . . . . . . . . . . . . . . . . . . 1 . . . . . 1 . 1 . Propulsion 29 | . . . 2 2 3 2 4 1 . . 1 2 . 2 3 . . . . . . . 1 1 1 1 3 Treads 8 | . . . 2 . . . . . . . . . . . 2 . . . . . . . 1 1 1 1 . Leg 1 | . . . . . . . . . . . . . . . 1 . . . . . . . . . . . . Wheel . | . . . . . . . . . . . . . . . . . . . . . . . . . . . . Hover 9 | . . . . 2 3 2 2 . . . . . . . . . . . . . . . . . . . . Flight 11 | . . . . . . . 2 1 . . 1 2 . 2 . . . . . . . . . . . . 3 Utility 98 | . . . 5 3 8 3 4 4 1 . 1 4 2 7 15 6 . 5 . 2 2 . 7 3 5 10 1 Device 47 | . . . 5 1 4 2 3 . 1 . 1 3 2 4 6 1 . 1 . 1 . . 3 1 2 5 1 Storage 4 | . . . . 1 1 . . . . . . 1 . . . . . . . . . . 1 . . . . Processor 7 | . . . . 1 1 . . . . . . . . 2 2 . . . . . . . . . . 1 . Hackware 17 | . . . . . 1 . 1 . . . . . . 1 . 5 . 2 . . 1 . 1 2 1 2 . Protection 22 | . . . . . 1 1 . 4 . . . . . . 7 . . 2 . 1 1 . 2 . 1 2 . Artifact 1 | . . . . . . . . . . . . . . . . . . . . . . . . . 1 . . Weapon 90 | . . 1 1 3 3 1 9 7 . . 3 2 2 16 3 4 . 2 2 3 . 2 1 5 7 9 4 Energy Gun 3 | . . . . 1 . . . . . . . . . . . . . . . . . . . 1 1 . . Energy Cannon 12 | . . 1 . . . . 1 . . . . . . 2 1 . . . . . . . . 2 2 3 . Ballistic Gun 6 | . . . . . 2 1 . 1 . . . . . . 1 1 . . . . . . . . . . . Ballistic Cannon . | . . . . . . . . . . . . . . . . . . . . . . . . . . . . Launcher 20 | . . . 1 1 . . 1 3 . . 2 . 1 3 . . . . 1 1 . 1 1 . 1 . 3 Special Weapon 3 | . . . . . . . . . . . . . . . . . . . . . . . . . 2 1 . Impact Weapon 19 | . . . . 1 . . 4 . . . . 1 . 3 . 1 . . 1 1 . 1 . . . 5 1 Slashing Weapon 21 | . . . . . 1 . 3 3 . . 1 1 1 4 1 2 . 1 . 1 . . . 1 1 . . Piercing Weapon . | . . . . . . . . . . . . . . . . . . . . . . . . . . . . Special Melee Weapon 6 | . . . . . . . . . . . . . . 4 . . . 1 . . . . . 1 . . . Unidentified Prototypes 21 | . . . 2 1 1 . 8 . . . . . . . . . . . . . 1 . . 1 7 . . Corrupted Parts 1 | . . . . . 1 . . . . . . . . . . . . . . . . . . . . . . System Corruption 2 | . . . . . 2 . . . . . . . . . . . . . . . . . . . . . . Parts Lost 46 | . . . . 1 . . 5 1 . . . 1 1 4 6 1 2 . . . . 1 2 . . 9 12 Power 6 | . . . . . . . 1 . . . . . . 2 1 . 1 . . . . . . . . 1 . Propulsion 9 | . . . . 1 . . 1 . . . . . . . 1 . . . . . . . 1 . . 2 3 Utility 27 | . . . . . . . 3 1 . . . 1 1 2 4 . 1 . . . . 1 1 . . 4 8 Weapon 4 | . . . . . . . . . . . . . . . . 1 . . . . . . . . . 2 1 Highest Loss Streak 12 | . . . . 1 . . 2 1 . . . 1 1 1 3 1 2 . . . . 1 1 . . 8 12 To Critical Strikes 3 | . . . . . . . . . . . . . . . 2 . . . . . . . . . . 1 . Average Slot Usage (%) 82 | . . 6 39 83 89 100 91 89 92 92 92 74 43 47 78 92 91 80 94 94 93 91 89 94 91 80 34 Engine 1 | . . . . 6 . . . . 1 7 7 6 5 1 4 5 4 . . . . . . . . . . Core 1 | . . . . 1 6 7 5 6 5 . . . . . . . . . . . . . . . . . . Reactor 2 | . . . . . . . . . . . . . . . . . . 1 5 5 5 5 4 4 4 3 . Treads 2 | . . . 9 1 . . . . . . . . . . 4 5 5 5 5 5 5 5 3 4 4 3 . Hover 1 | . . . . 12 12 15 12 . . . . . . . . . . . . . . . . . . . . Flight 2 | . . . . . . . 1 14 15 15 15 13 11 6 . . . . . . . . . . . . 1 Device 14 | . . . 22 38 28 28 24 7 9 15 21 21 1 5 12 16 8 8 10 10 10 10 15 15 15 15 1 Storage 2 | . . . . 4 7 7 7 7 7 7 7 5 . . . . . . . . . . 1 4 4 3 . Processor 11 | . . . . 1 10 15 15 15 15 15 15 13 11 15 21 11 11 10 10 10 10 10 9 9 9 8 8 Hackware 20 | . . . . . 6 7 7 7 7 7 7 . . 1 5 11 29 29 36 36 36 36 32 33 38 30 21 Protection 9 | . . . . . . 1 . 21 20 15 9 6 5 3 15 27 17 13 15 15 14 12 11 10 2 3 . Launcher 1 | . . . 3 5 . . . 1 . . 2 . . . . . . . 3 2 . 2 1 2 . . . Impact Weapon 2 | . . . . 3 7 7 4 . . . . . . 2 . 3 5 3 . 4 5 2 4 . . 1 . Slashing Weapon 3 | . . . . . 1 1 4 5 7 7 4 6 4 1 1 2 5 4 4 2 5 5 2 . 3 2 . Peak Build Rating 187 | . . 1 24 32 48 53 54 46 46 46 51 57 43 58 103 109 109 114 114 114 118 118 133 142 169 187 74 Average Rating 92 | . . . 11 27 39 47 48 44 45 46 50 52 39 43 86 106 106 101 113 113 115 114 124 134 150 168 44 On Entrance 67 | . . . 1 21 29 42 53 29 45 46 46 51 40 38 54 103 109 100 111 114 114 118 109 133 135 169 69 Naked Turns 61 | . 20 41 . . . . . . . . . . . . . . . . . . . . . . . . . Heaviest Build 94 | . . 3 4 24 34 26 27 21 21 20 20 26 16 27 63 65 44 46 46 46 46 46 69 76 74 94 4 Greatest Support 80 | 3 3 3 12 21 25 33 33 21 21 23 23 26 14 14 80 80 80 80 80 80 80 80 80 80 80 80 12 Greatest Overweight (x) 10 | . . . 1 3 2 1 3 1 . . . 1 1 8 7 . . . . . . . . 1 . 10 1 Average Overweight (x) . | . . . . . . . . . . . . . . . . . . . . . . . . . . 1 . Largest Inventory Capacity 15 | 5 5 5 5 10 10 8 8 8 8 8 8 10 5 5 5 5 5 5 5 5 5 5 15 15 15 15 5 Average Capacity 7 | 5 5 5 5 7 8 8 8 8 8 8 8 8 5 5 5 5 5 5 5 5 5 5 8 15 15 13 5 Most Carried 15 | . . 3 5 7 9 8 8 8 8 8 8 10 5 5 5 5 4 5 5 5 5 5 13 15 15 15 5 Average Carried 7 | . . 2 4 5 7 8 7 7 7 8 8 8 4 4 4 4 4 4 5 5 4 5 5 14 14 12 4 Final Capacity 15 | 5 5 5 5 10 8 8 8 8 8 8 8 5 5 5 5 5 5 5 5 5 5 5 15 15 15 5 5 Final Carried 15 | . . 3 5 7 8 8 8 7 8 8 8 5 5 5 5 4 4 5 5 5 5 5 13 15 15 5 3 Class Distribution -------------------- 52% | Wizard-Mutant 23% | Mutant 10% | Scavenger-Mutant 6% | Sprinter 4% | Gladiator Dominant Class ---------------- Mutant | -10/Materials Mutant | -9/Materials Mutant | -9/Mines Scavenger-Mutant | -8/Materials Mutant | -7/Factory Mutant | -7/Waste Mutant | -7/Factory Sprinter | -7/Lower Caves Sprinter | -7/Lower Caves Sprinter | -7/Data Miner Mutant | -6/Proximity Caves Mutant | -6/Factory Mutant | -5/Factory Mutant | -5/Extension Scavenger-Mutant | -5/Cetus Scavenger-Mutant | -5/Archives Wizard-Mutant | -5/Hub_04(d) Wizard-Mutant | -4/Factory Wizard-Mutant | -4/Upper Caves Wizard-Mutant | -4/Upper Caves Wizard-Mutant | -4/Zhirov Wizard-Mutant | -3/Proximity Caves Wizard-Mutant | -3/Research Wizard-Mutant | -3/Armory Wizard-Mutant | -3/Lab Wizard-Mutant | -2/Research Hacker-Mutant | -2/Garrison Resources | -11 -10 -9 -9 -8 -7 -7 -7 -7 -7 -7 -6 -6 -5 -5 -5 -5 -5 -4 -4 -4 -4 -3 -3 -3 -3 -2 -2 ----------- Run | Yrd Mat Mat Min Mat Fac Was Fac Low Low Dat Pro Fac Fac Ext Cet Arc Hub Fac Upp Upp Zhi Pro Res Arm Lab Res Gar Matter Collected 4454 | 73 . 137 376 65 248 90 129 296 134 . 108 176 6 819 337 223 . 22 280 97 76 140 191 . 105 326 . Remotely . | . . . . . . . . . . . . . . . . . . . . . . . . . . . . Salvage Created 5701 | . . . 14 189 447 95 224 193 147 25 165 171 59 666 369 610 . 44 73 44 112 117 358 . 185 1379 15 Parts 270 | . . . . 20 11 4 19 7 2 2 19 5 4 26 19 27 . 9 9 4 3 5 16 . 11 42 6 Haulers Intercepted 4 | . . . . 1 1 . 1 . . . . . . . . . . . . . . . 1 . . . . Recyclers Shooed 2 | . . . . . . . . . . . . . . . . . . . . . . . 2 . . . . Parts Field Recycled . | . . . . . . . . . . . . . . . . . . . . . . . . . . . . Retrieved Matter . | . . . . . . . . . . . . . . . . . . . . . . . . . . . . Parts Self-Destructed 39 | . . . . . . . . 4 2 . 9 . . . . . . . 7 9 3 5 . . . . . Prevented . | . . . . . . . . . . . . . . . . . . . . . . . . . . . . Kills | -11 -10 -9 -9 -8 -7 -7 -7 -7 -7 -7 -6 -6 -5 -5 -5 -5 -5 -4 -4 -4 -4 -3 -3 -3 -3 -2 -2 ------- Run | Yrd Mat Mat Min Mat Fac Was Fac Low Low Dat Pro Fac Fac Ext Cet Arc Hub Fac Upp Upp Zhi Pro Res Arm Lab Res Gar Combat Hostiles Destroyed 108 | . . . 8 7 . . 4 6 . . 13 . 5 15 5 4 . . 8 4 . 6 5 . 3 13 2 Melee 15 | . . . . 1 . . 4 . . . . . . 3 . 1 . . 1 . . 1 2 . 1 1 . Guns 4 | . . . . . . . . . . . . . . . 2 2 . . . . . . . . . . . Cannons 10 | . . . . . . . . . . . . . . . 3 1 . . . . . . . . . 6 . AOE 71 | . . . 8 6 . . . 6 . . 13 . 5 11 . . . . 7 4 . 5 2 . 2 . 2 Classes Destroyed 18 | . . . 1 6 1 1 3 . . . 1 . . 5 . . . . . . . . . . . . . Worker 6 | . . . . 2 2 . . . . . . 1 . . . . . . . . . . 1 . . . . Builder 5 | . . . . . . . 2 . . . . . . 1 . . . . . . . . 2 . . . . Tunneler 3 | . . . . . . . 1 . . . . . . . . . . 1 . . . . . . . 1 . Hauler 4 | . . . . 1 1 . 1 . . . . . . . . . . . . . . . 1 . . . . Recycler 7 | . . . . . 3 . . . . . . 1 . 1 . . . . . . . . . . . 2 . Mechanic 1 | . . . . . . . . . . . . . . 1 . . . . . . . . . . . . . Operator 13 | . . . . 2 . . 1 . . . . . . 2 . 7 . 1 . . . . . . . . . Drone 3 | . . . . . . . . . . . 1 . . . . . . . . . . 2 . . . . . Watcher 9 | . . . . 1 3 . 1 . . . . . . 2 1 . . . . . . . . . . 1 . Swarmer 41 | . . . . 3 . . 3 4 . . 8 . 5 4 . . . . 5 4 . 3 . . . . 2 Grunt 29 | . . . . 4 . . . 2 . . 4 . . 6 . . . . 3 . . . 3 . 3 4 . Duelist 2 | . . . . . . . . . . . . . . 1 . . . . . . . . 1 . . . . Sentry 10 | . . . . . . . . . . . . . . 2 . 4 . . . . . 1 . . . 3 . Specialist 1 | . . . . . . . . . . . . . . 1 . . . . . . . . . . . . . Hunter 3 | . . . . . . . . . . . . . . 1 . . . . . . . . . . . 2 . Programmer 4 | . . . . . . . 1 . . . . . . . . . . . . . . . 1 . . 2 . Cetus Guard 5 | . . . . . . . . . . . . . . . 5 . . . . . . . . . . . . Tracker 2 | . . . . . . . . . . . . . . . . . . . . . . . . . . 2 . Packrat 1 | . . . . . . . . . 1 . . . . . . . . . . . . . . . . . . Assembled 8 | . . . 8 . . . . . . . . . . . . . . . . . . . . . . . . Martyr 2 | . . . . . . 2 . . . . . . . . . . . . . . . . . . . . . Best Kill Streak 11 | . . . 6 11 3 . 3 3 . 1 9 1 5 7 2 6 . 1 5 4 . 4 6 . 3 4 2 Combat Bots Only 9 | . . . 6 6 . . 3 3 . . 9 . 5 6 2 1 . . 5 4 . 4 4 . 3 3 2 Max Kills in Single Turn 4 | . . . 2 4 1 1 1 3 1 1 3 1 4 2 1 1 . 1 3 3 . 2 2 . 2 1 2 Gunslinging . | . . . . . . . . . . . . . . . . . . . . . . . . . . . . Exploded 4 | . . . 2 4 . . . 3 . . 3 . 4 2 . . . . 3 3 . 2 2 . 2 . 2 Melee 1 | . . . . 1 . . 1 . . . . . . 1 . 1 . . 1 . . 1 1 . 1 1 . Uniques/NPCs Destroyed 1 | . . . . . . . . . . 1 . . . . . . . . . . . . . . . . . Data Miner (-7/Data Miner) Combat | -11 -10 -9 -9 -8 -7 -7 -7 -7 -7 -7 -6 -6 -5 -5 -5 -5 -5 -4 -4 -4 -4 -3 -3 -3 -3 -2 -2 -------- Run | Yrd Mat Mat Min Mat Fac Was Fac Low Low Dat Pro Fac Fac Ext Cet Arc Hub Fac Upp Upp Zhi Pro Res Arm Lab Res Gar Hostile Shots Fired 849 | . 6 28 11 13 8 . 83 7 . . 3 58 19 34 86 45 65 . 40 2 . 16 34 16 13 194 68 Missed 252 | . 4 11 2 4 5 . 37 1 . . 3 35 13 14 13 7 16 . 11 2 . 4 8 6 5 35 16 Damage Taken 13062 | . 19 179 203 125 240 . 675 95 . . 18 222 125 371 1982 1045 796 . 613 13 . 339 683 755 107 3163 1294 Core 3206 | . 19 126 126 21 . . 152 51 . . . 51 18 140 218 30 54 . 18 . . 27 75 323 10 804 943 Absorbed by Shields 925 | . . . . . . . 42 . . . . . . 96 . . . . . . . . . . 99 622 66 Reduced by Siege Mode 218 | . . . . . . . . . . . . . . . 68 51 . . . . . . . . . 99 . Redirected to Shielding 158 | . . . . . . . . . . . . . . . . . . . . . . . . . . 158 . Regen/Repaired (Parts) 918 | . . . . . . 32 . . . . . . . . . . . 886 . . . . . . . . . Core Remaining (%) 77 | 100 92 . 37 96 . . . . . . 71 94 . . . . 54 . . . . 96 . . 59 . . Volleys Fired 271 | . . 6 12 8 8 5 5 7 . . 11 . 2 25 45 33 . . 9 2 . 5 4 7 5 67 5 Largest 2 | . . 1 1 2 1 1 1 1 . . 1 . 1 1 2 2 . . 1 1 . 1 1 2 1 1 1 Hottest 214 | . . 60 30 91 28 28 28 80 . . 80 . 80 98 133 133 . . 80 80 . 80 80 214 100 120 80 Shots Fired 311 | . . 6 12 9 8 5 5 7 . . 11 . 2 25 73 42 . . 9 2 . 5 4 10 5 66 5 Gun 86 | . . . . 3 8 5 5 . . . . . . . 30 32 . . . . . . . 3 . . . Cannon 143 | . . 6 . . . . . . . . . . . 10 43 10 . . . . . . . 7 1 66 . Launcher 80 | . . . 12 6 . . . 7 . . 11 . 2 15 . . . . 9 2 . 5 4 . 2 . 5 Special 2 | . . . . . . . . . . . . . . . . . . . . . . . . . 2 . . Kinetic 80 | . . . . . 8 5 5 . . . . . . . 30 32 . . . . . . . . . . . Thermal 149 | . . 6 . 3 . . . . . . . . . 10 43 10 . . . . . . . 10 1 66 . Explosive 80 | . . . 12 6 . . . 7 . . 11 . 2 15 . . . . 9 2 . 5 4 . 2 . 5 Electromagnetic . | . . . . . . . . . . . . . . . . . . . . . . . . . . . . Robot Hit Streak 28 | . . 2 3 5 7 5 8 . . . 1 . . 9 17 16 . . 4 . . . 5 4 3 28 . Robot Miss Streak 3 | . . 2 . . 1 . 1 . . . . . . . 3 1 . . . . . . . 1 . 1 . Penetration Max 1 | . . . . . . . . . . . . . . . 1 . . . . . . . . . . . . Secondary Targets . | . . . . . . . . . . . . . . . . . . . . . . . . . . . . Shots Hit Robots 280 | . . 3 1 6 14 9 19 3 2 1 1 5 . 32 60 46 . 2 3 . 1 7 12 8 5 40 . Core Hits 239 | . . 2 17 15 5 3 7 11 1 1 19 1 5 37 21 19 . 1 14 5 1 8 13 1 5 19 8 Critical Kills 11 | . . . . . 1 . . . . . . . . . . 2 . . . . . . 2 . . 6 . Critical Parts Destroyed 12 | . . . . 1 1 1 . . . . . . . 1 3 1 . . . . . . 2 . . 2 . Critical Strikes 29 | . . . . 1 2 1 . . . . . . . 2 4 5 . . . . . 1 4 . . 9 . Meltdown 6 | . . . . . . . . . . . . . . . . . . . . . . . . . . 6 . Destroy 9 | . . . . . . . . . . . . . . . 4 5 . . . . . . . . . . . Smash 13 | . . . . 1 2 1 . . . . . . . 1 . . . . . . . 1 4 . . 3 . Sever 1 | . . . . . . . . . . . . . . 1 . . . . . . . . . . . . . Melee Attacks 300 | . . . . 6 13 10 44 4 2 22 . 16 6 51 . 10 3 4 22 4 1 9 25 8 7 27 6 Impact 154 | . . . . 6 12 6 21 . . . . 1 . 33 . 2 1 . 4 2 . 7 25 3 . 25 6 Slashing 136 | . . . . . 1 4 23 4 2 22 . 15 6 12 . 8 2 4 18 2 1 2 . 1 7 2 . Piercing . | . . . . . . . . . . . . . . . . . . . . . . . . . . . . Sneak Attacks 48 | . . . . . 7 4 6 . 1 1 . 3 . 11 . 7 . 2 . . . . 2 4 . . . Combat Hostiles 1 | . . . . . . . . . . . . . . 1 . . . . . . . . . . . . . Follow-up Attacks 5 | . . . . . . . 2 . . . . . . . . 1 . . . . . 2 . . . . . Damage Inflicted 24399 | . . 60 680 1157 778 364 1021 1036 176 85 1509 485 432 3898 2195 1961 . 233 1389 368 90 867 1391 177 355 3320 372 Guns 2043 | . . . . 40 98 95 92 . . . . . . . 796 839 . . . . . . . 83 . . . Cannons 3928 | . . 54 . . . . . . . . . . . . 1399 216 . . . . . . . 94 . 2165 . Explosions 10290 | . . . 669 908 . . . 831 . . 1509 . 432 2540 . . . . 1288 368 . 567 560 . 246 . 372 Melee 8117 | . . . . 209 680 269 929 205 176 85 . 485 . 1358 . 906 . 233 101 . 90 300 827 . 109 1155 . Ramming 21 | . . 6 11 . . . . . . . . . . . . . . . . . . . 4 . . . . Kinetic 1920 | . . . . . 98 95 92 . . . . . . . 796 839 . . . . . . . . . . . Thermal 4051 | . . 54 . 40 . . . . . . . . . . 1399 216 . . . . . . . 177 . 2165 . Explosive 10290 | . . . 669 908 . . . 831 . . 1509 . 432 2540 . . . . 1288 368 . 567 560 . 246 . 372 Electromagnetic . | . . . . . . . . . . . . . . . . . . . . . . . . . . . . Impact 4840 | . . . . 209 680 269 444 . . . . 42 . 858 . 139 . . . . . 217 827 . . 1155 . Slashing 3277 | . . . . . . . 485 205 176 85 . 443 . 500 . 767 . 233 101 . 90 83 . . 109 . . Piercing . | . . . . . . . . . . . . . . . . . . . . . . . . . . . . Highest Corruption 30 | . . . . . 2 . 2 2 2 2 2 . . 2 2 2 . . . . . . 1 1 1 30 30 Average Corruption 4 | . . . . . 1 . 1 2 2 2 2 . . 1 2 1 . . . . . . 1 1 1 13 30 Corruption Purged 6 | . . . . . 3 . 1 . . . . . . . . 2 . . . . . . . . . . . Corruption Blocked . | . . . . . . . . . . . . . . . . . . . . . . . . . . . . Effects 67 | . . . . . 1 . 1 6 6 3 4 . . 1 4 1 . . . . . . 5 2 5 19 9 Message Errors 16 | . . . . . . . . 2 1 1 . . . . 1 . . . . . . . 1 1 2 7 . Matter Fused 12 | . . . . . 1 . . . 2 1 . . . . 1 . . . . . . . 1 . 1 4 1 Heat Flow Errors 10 | . . . . . . . . 1 . 1 . . . . . . . . . . . . 2 . 1 4 1 Energy Discharges 8 | . . . . . . . . 1 1 . 1 . . . 1 . . . . . . . 1 1 . 1 1 Parts Rejected 1 | . . . . . . . . 1 . . . . . . . . . . . . . . . . . . . Data Loss (minor) 7 | . . . . . . . 1 . 1 . 2 . . . . 1 . . . . . . . . 1 . 1 Data Loss (major) 4 | . . . . . . . . . 1 . 1 . . 1 1 . . . . . . . . . . . . Alerts 3 | . . . . . . . . 1 . . . . . . . . . . . . . . . . . 1 1 Misdirections 5 | . . . . . . . . . . . . . . . . . . . . . . . . . . 1 4 Weapon Failures 1 | . . . . . . . . . . . . . . . . . . . . . . . . . . 1 . Overload Shots . | . . . . . . . . . . . . . . . . . . . . . . . . . . . . Overflow Damage 2987 | . . . 9 83 279 78 326 132 80 . 172 224 . 601 17 139 . 133 75 5 . 14 275 . . 284 61 Projectiles 58 | . . . . . . 3 . . . . . . . . 17 . . . . . . . . . . 38 . Explosions 480 | . . . 9 . . . . 56 . . 172 . . 88 . . . . 75 5 . 14 . . . . 61 Melee 2449 | . . . . 83 279 75 326 76 80 . . 224 . 513 . 139 . 133 . . . . 275 . . 246 . Knockbacks 14 | . . . . 1 2 3 . . . . . . . . . . . . . . . . 3 . . 5 . Impact 12 | . . . . 1 2 2 . . . . . . . . . . . . . . . . 3 . . 4 . Kinetic . | . . . . . . . . . . . . . . . . . . . . . . . . . . . . Secondary 2 | . . . . . . 1 . . . . . . . . . . . . . . . . . . . 1 . Self-Inflicted Damage 304 | . . 2 68 7 . . . . . . 18 . 20 13 . . . . 66 . . 17 . . . . 93 Shots 13 | . . . 2 1 . . . . . . 1 . 1 1 . . . . 3 . . 1 . . . . 3 Rammed 7 | . . 4 2 . . . . . . . . . . . . . . . . . . . 1 . . . . Targets Rammed 7 | . . 4 2 . . . . . . . . . . . . . . . . . . . 1 . . . . Kicked . | . . . . . . . . . . . . . . . . . . . . . . . . . . . . Crushed . | . . . . . . . . . . . . . . . . . . . . . . . . . . . . Highest Temperature 394 | . . 10 2 . . . . 247 . 251 233 7 76 96 394 102 4 . 113 24 . 24 . 271 . 200 230 Average Temperature 85 | . . 4 2 . . . . 101 . 140 83 4 37 20 138 51 4 . 55 18 . 18 . 154 . 82 127 Received Heat Transfer 1077 | . . 102 30 63 27 . 27 9 . . . 87 36 59 18 126 126 . 57 . . 54 54 27 16 38 121 Siege Activations 7 | . . . . . . . . . . . . . . . 2 3 . . . . . . . . . 2 . Total Turns 186 | . . . . . . . . . . . . . . . 76 72 . . . . . . . . . 38 . Longest Duration 65 | . . . . . . . . . . . . . . . 65 32 . . . . . . . . . 29 . Robots Corrupted 9 | . . . . . 3 1 . . . . . . . 3 . . . . . . . . 1 . . 1 . Combat Hostiles 2 | . . . . . . . . . . . . . . 1 . . . . . . . . 1 . . . . Parts Fried 24 | . . . . 1 7 4 2 . . . . . . 7 . . . . . . . . 1 . . 2 . Impact Corruptions 43 | . . . . 2 7 3 4 . . . . . . 8 . 1 . . . . . . 9 . . 9 . Robots Melted 6 | . . . . . . . . . . . . . . . . . . . . . . . . . . 6 . Combat Hostiles 6 | . . . . . . . . . . . . . . . . . . . . . . . . . . 6 . Parts Melted 12 | . . . . . . . . . . . . . . 1 . . . . . . . . . . . 11 . Heat Transferred 4193 | . . 111 . 74 . . . . . . . . . . 1950 300 . . . . . . . 167 . 1591 . Parts Sabotaged . | . . . . . . . . . . . . . . . . . . . . . . . . . . . . Parts Stolen . | . . . . . . . . . . . . . . . . . . . . . . . . . . . . Parts Stripped . | . . . . . . . . . . . . . . . . . . . . . . . . . . . . Power Chain Reactions . | . . . . . . . . . . . . . . . . . . . . . . . . . . . . Alert | -11 -10 -9 -9 -8 -7 -7 -7 -7 -7 -7 -6 -6 -5 -5 -5 -5 -5 -4 -4 -4 -4 -3 -3 -3 -3 -2 -2 ------- Run | Yrd Mat Mat Min Mat Fac Was Fac Low Low Dat Pro Fac Fac Ext Cet Arc Hub Fac Upp Upp Zhi Pro Res Arm Lab Res Gar Peak Influence 1169 | . . 75 165 358 284 125 493 . . . . 539 427 1169 579 395 239 158 . . . . 300 115 . 294 237 Initial 570 | . . . 28 60 162 74 87 . . . . 322 198 208 570 155 71 114 . . . . 300 95 . . 72 Average 252 | . . 16 75 225 195 112 304 . . . . 375 369 577 505 281 151 105 . . . . 116 98 . 141 180 Maximum Alert Level 4 | . . . . 1 1 . 2 . . . . 2 2 4 2 1 1 . . . . . 1 . . 1 1 Low Security (%) 48 | 100 100 100 100 54 45 100 12 . . . . . 7 . . 7 62 100 . . . . 92 100 . 78 48 Level 1 33 | . . . . 45 54 . 68 . . . . 65 41 27 29 92 37 . . . . . 7 . . 21 51 Level 2 14 | . . . . . . . 19 . . . . 34 51 45 70 . . . . . . . . . . . . Level 3 1 | . . . . . . . . . . . . . . 12 . . . . . . . . . . . . . Level 4 1 | . . . . . . . . . . . . . . 15 . . . . . . . . . . . . . Level 5 . | . . . . . . . . . . . . . . . . . . . . . . . . . . . . High Security . | . . . . . . . . . . . . . . . . . . . . . . . . . . . . Max Security . | . . . . . . . . . . . . . . . . . . . . . . . . . . . . Squads Dispatched 43 | . . 2 . 1 6 . 6 . . . . 3 2 6 . . 2 2 . . . . 6 2 . 5 . Investigation 22 | . . 2 . . 5 . 4 . . . . 2 2 2 . . 2 . . . . . 2 1 . . . Extermination 5 | . . . . . 1 . 1 . . . . . . . . . . . . . . . . 1 . 2 . Reinforcement 10 | . . . . 1 . . 1 . . . . 1 . 2 . . . 2 . . . . 3 . . . . Assault 2 | . . . . . . . . . . . . . . 2 . . . . . . . . . . . . . Garrison . | . . . . . . . . . . . . . . . . . . . . . . . . . . . . Intercept 4 | . . . . . . . . . . . . . . . . . . . . . . . 1 . . 3 . Searches Triggered 1 | . . . . . . . . . . . . 1 . . . . . . . . . . . . . . . Construction Impeded . | . . . . . . . . . . . . . . . . . . . . . . . . . . . . Haulers Reinforced 1 | . . . . . . . . . . . . 1 . . . . . . . . . . . . . . . Active Scanning Responses . | . . . . . . . . . . . . . . . . . . . . . . . . . . . . Cargo Convoy Interrupts 1 | . . . . . . . 1 . . . . . . . . . . . . . . . . . . . . Stealth | -11 -10 -9 -9 -8 -7 -7 -7 -7 -7 -7 -6 -6 -5 -5 -5 -5 -5 -4 -4 -4 -4 -3 -3 -3 -3 -2 -2 --------- Run | Yrd Mat Mat Min Mat Fac Was Fac Low Low Dat Pro Fac Fac Ext Cet Arc Hub Fac Upp Upp Zhi Pro Res Arm Lab Res Gar Distress Signals 21 | . . 3 . 1 . . . . . . . . 1 4 2 . . . . . . . 8 . . 2 . Communications Jammed . | . . . . . . . . . . . . . . . . . . . . . . . . . . . . Distress Signals . | . . . . . . . . . . . . . . . . . . . . . . . . . . . . Times Spotted 300 | . 4 15 14 13 13 4 34 12 . . 6 11 16 40 10 8 8 1 9 4 . 7 24 5 3 27 12 Peak Tracking Total 18 | . 4 18 4 10 5 3 13 4 . . 4 7 11 8 5 1 9 1 5 4 . 3 6 6 3 7 10 Tactical Retreats 20 | . . 1 2 . 2 . 1 2 . . . 1 . 5 . 2 . . 1 . . . 2 . . 1 . Traps | -11 -10 -9 -9 -8 -7 -7 -7 -7 -7 -7 -6 -6 -5 -5 -5 -5 -5 -4 -4 -4 -4 -3 -3 -3 -3 -2 -2 ------- Run | Yrd Mat Mat Min Mat Fac Was Fac Low Low Dat Pro Fac Fac Ext Cet Arc Hub Fac Upp Upp Zhi Pro Res Arm Lab Res Gar Traps Triggered 5 | . . . . . 2 . 1 . . . . . . 1 . . . . . . . . . . . . 1 Indirectly . | . . . . . . . . . . . . . . . . . . . . . . . . . . . . Trap Hack Attempts 13 | . . . . . . . . . . . . . . . . . . 13 . . . . . . . . . Triggered . | . . . . . . . . . . . . . . . . . . . . . . . . . . . . Disarmed 2 | . . . . . . . . . . . . . . . . . . 2 . . . . . . . . . Reprogrammed 5 | . . . . . . . . . . . . . . . . . . 4 . . . . 1 . . . . Reused 3 | . . . . . . . . . . . . . . 3 . . . . . . . . . . . . . Traps Extracted 7 | . . . . . . . . . 3 . . . . . . . . 4 . . . . . . . . . Installed 3 | . . . . . . . . . . . . . . 3 . . . . . . . . . . . . . Triggered 3 | . . . . . . . . . . . . . . 3 . . . . . . . . . . . . . Most Traps Carried 4 | . . . . . . . . . 3 3 3 3 3 3 . . . 4 4 4 4 4 4 4 4 4 4 Machines | -11 -10 -9 -9 -8 -7 -7 -7 -7 -7 -7 -6 -6 -5 -5 -5 -5 -5 -4 -4 -4 -4 -3 -3 -3 -3 -2 -2 ---------- Run | Yrd Mat Mat Min Mat Fac Was Fac Low Low Dat Pro Fac Fac Ext Cet Arc Hub Fac Upp Upp Zhi Pro Res Arm Lab Res Gar Machines Disabled 29 | . . . 1 2 . . 9 . . . . . 2 5 . 4 . . . 1 . . . 2 2 . 1 Max in Single Turn 1 | . . . 1 1 . . . . . . . . 1 1 . 1 . . . 1 . . . 1 1 . 1 Garrison Access 4 | . . . . . 1 . 1 . . . . 1 . . . . . . . . . . 1 . . . . Network Hub 2 | . . . . . . . . . . . . . . . . . 2 . . . . . . . . . . Machines Repaired . | . . . . . . . . . . . . . . . . . . . . . . . . . . . . Machines Dismantled . | . . . . . . . . . . . . . . . . . . . . . . . . . . . . Machines Sabotaged 2 | . . . . . . . . . . . . . . . . . 2 . . . . . . . . . . Overloaded Fab Kills . | . . . . . . . . . . . . . . . . . . . . . . . . . . . . Hacking | -11 -10 -9 -9 -8 -7 -7 -7 -7 -7 -7 -6 -6 -5 -5 -5 -5 -5 -4 -4 -4 -4 -3 -3 -3 -3 -2 -2 --------- Run | Yrd Mat Mat Min Mat Fac Was Fac Low Low Dat Pro Fac Fac Ext Cet Arc Hub Fac Upp Upp Zhi Pro Res Arm Lab Res Gar Machines Accessed 81 | . . 2 1 1 10 . 8 . 1 3 . 8 3 16 . . 2 3 1 1 4 . 7 1 2 6 1 Terminals 45 | . . 2 . 1 2 . 4 . . . . 5 2 16 . . 2 2 . . . . 5 . . 3 1 Fabricators 10 | . . . . . 3 . 1 . . . . 2 1 . . . . . . . . . 1 1 . 1 . Repair Stations 2 | . . . . . 1 . . . . . . . . . . . . 1 . . . . . . . . . Recycling Units 2 | . . . . . 2 . . . . . . . . . . . . . . . . . . . . . . Scanalyzers 2 | . . . . . . . 1 . . . . . . . . . . . . . . . . . . 1 . Garrison Access 7 | . . . . . 2 . 2 . . . . 1 . . . . . . . . . . 1 . . 1 . Total Hacks 265 | . . 5 1 2 25 . 16 . 1 24 . 17 8 32 . . 3 21 1 4 13 . 41 4 22 23 2 Successful 187 | . . 1 1 . 12 . 5 . 1 24 . 7 2 12 . . 3 15 1 4 13 . 38 4 22 21 1 Failed 78 | . . 4 . 2 13 . 11 . . . . 10 6 20 . . . 6 . . . . 3 . . 2 1 Catastrophic 21 | . . 2 . . 3 . 3 . . . . 4 2 6 . . . . . . . . . . . 1 . Database Lockouts . | . . . . . . . . . . . . . . . . . . . . . . . . . . . . Manual 78 | . . 5 . 2 5 . 1 . . . . 10 5 9 . . 3 7 . . . . 19 1 . 10 1 Terminals 134 | . . 5 . 2 6 . 8 . . . . 9 5 32 . . 3 13 . . . . 35 . . 14 2 Fabricators 33 | . . . . . 6 . 1 . . . . 7 3 . . . . . . . . . 5 4 . 7 . Repair Stations 11 | . . . . . 3 . . . . . . . . . . . . 8 . . . . . . . . . Recycling Units 5 | . . . . . 5 . . . . . . . . . . . . . . . . . . . . . . Scanalyzers 4 | . . . . . . . 3 . . . . . . . . . . . . . . . . . . 1 . Garrison Access 12 | . . . . . 5 . 4 . . . . 1 . . . . . . . . . . 1 . . 1 . Terminal Hacks 130 | . . 1 1 . 2 . 1 . 1 24 . . 1 11 . . 1 8 1 4 13 . 28 . 22 11 . Record 37 | . . . . . . . . . . 6 . . . . . . . 1 . 4 5 . . . 21 . . Part Schematic 20 | . . . . . . . . . . 11 . . . . . . . 1 . . 4 . 2 . . 2 . Robot Schematic 6 | . . . . . . . . . . 4 . . . . . . . 1 . . . . 1 . . . . Prototype ID Bank 10 | . . . . . . . . . . 3 . . . . . . . . . . 4 . 3 . . . . Open Door 10 | . . . 1 . . . . . 1 . . . 1 6 . . . . 1 . . . . . . . . Level Access Points 1 | . . . . . . . . . . . . . . . . . 1 . . . . . . . . . . Branch Access Points 4 | . . 1 . . . . . . . . . . . . . . . 1 . . . . 1 . . 1 . Emergency Access Points 3 | . . . . . . . . . . . . . . . . . . . . . . . 2 . . 1 . Alert Level 6 | . . . . . . . . . . . . . . 2 . . . 1 . . . . 2 . . 1 . Unreport Threat 3 | . . . . . . . . . . . . . . 1 . . . . . . . . 2 . . . . Locate Traps 6 | . . . . . 1 . . . . . . . . 1 . . . 1 . . . . 2 . . 1 . Reprogram Traps 1 | . . . . . . . . . . . . . . . . . . . . . . . 1 . . . . Dispatch Records 1 | . . . . . . . . . . . . . . . . . . . . . . . 1 . . . . Maintenance Status 1 | . . . . . . . . . . . . . . . . . . . . . . . 1 . . . . Security Status 2 | . . . . . . . . . . . . . . . . . . . . . . . 1 . . 1 . Patrol Status 1 | . . . . . . . . . . . . . . . . . . . . . . . . . . 1 . Garrison Status 1 | . . . . . . . . . . . . . . . . . . . . . . . 1 . . . . Coupling Status 1 | . . . . . . . . . . . . . . . . . . . . . . . 1 . . . . Recall Investigation 2 | . . . . . . . . . . . . . . . . . . . . . . . 2 . . . . Recall Reinforcements 2 | . . . . . . . . . . . . . . . . . . 1 . . . . 1 . . . . Hauler Manifests 4 | . . . . . . . 1 . . . . . . . . . . 1 . . . . 1 . . 1 . Registered Components 2 | . . . . . . . . . . . . . . . . . . . . . . . 1 . . 1 . Registered Prototypes 1 | . . . . . . . . . . . . . . . . . . . . . . . . . . 1 . Zone Layout 4 | . . . . . 1 . . . . . . . . 1 . . . . . . . . 2 . . . . Release Object 1 | . . . . . . . . . . . . . . . . . . . . . . . . . 1 . . Fabricator Hacks 15 | . . . . . 2 . 1 . . . . 3 . . . . . . . . . . 3 3 . 3 . Network Status 7 | . . . . . 2 . 1 . . . . 1 . . . . . . . . . . 1 1 . 1 . Load Schematic 3 | . . . . . . . . . . . . . . . . . . . . . . . 1 1 . 1 . Build 5 | . . . . . . . . . . . . 2 . . . . . . . . . . 1 1 . 1 . Repair Station Hacks 8 | . . . . . 1 . . . . . . . . . . . . 7 . . . . . . . . . Scan Component 5 | . . . . . 1 . . . . . . . . . . . . 4 . . . . . . . . . Repair 3 | . . . . . . . . . . . . . . . . . . 3 . . . . . . . . . Recycling Unit Hacks 2 | . . . . . 2 . . . . . . . . . . . . . . . . . . . . . . Retrieve Components 2 | . . . . . 2 . . . . . . . . . . . . . . . . . . . . . . Scanalyzer 3 | . . . . . . . 2 . . . . . . . . . . . . . . . . . . 1 . Insert Component 2 | . . . . . . . 1 . . . . . . . . . . . . . . . . . . 1 . Analyze 1 | . . . . . . . 1 . . . . . . . . . . . . . . . . . . . . Garrison Access Hacks 5 | . . . . . 1 . 1 . . . . 1 . . . . . . . . . . 1 . . 1 . Unlock Access 1 | . . . . . . . . . . . . . . . . . . . . . . . . . . 1 . Seal Access 4 | . . . . . 1 . 1 . . . . 1 . . . . . . . . . . 1 . . . . Unauthorized Hacks 24 | . . . . . 4 . . . . . . 3 1 1 . . 2 . . . . . 6 1 . 5 1 Terminals 11 | . . . . . . . . . . . . 1 1 1 . . 2 . . . . . 4 . . 1 1 Track 1 | . . . . . . . . . . . . . . . . . . . . . . . 1 . . . . Botnet 4 | . . . . . . . . . . . . 1 1 1 . . . . . . . . 1 . . . . Disrupt 1 | . . . . . . . . . . . . . . . . . . . . . . . 1 . . . . Operators 2 | . . . . . . . . . . . . . . . . . . . . . . . 1 . . 1 . Sabotage 2 | . . . . . . . . . . . . . . . . . 2 . . . . . . . . . . Override 1 | . . . . . . . . . . . . . . . . . . . . . . . . . . . 1 Fabricators 12 | . . . . . 3 . . . . . . 2 . . . . . . . . . . 2 1 . 4 . Report 1 | . . . . . . . . . . . . . . . . . . . . . . . . . . 1 . Prioritize 3 | . . . . . . . . . . . . 1 . . . . . . . . . . . 1 . 1 . Liberate 1 | . . . . . . . . . . . . . . . . . . . . . . . . . . 1 . Fabnet 2 | . . . . . 1 . . . . . . . . . . . . . . . . . 1 . . . . Haulers 4 | . . . . . 1 . . . . . . 1 . . . . . . . . . . 1 . . 1 . Recompile 1 | . . . . . 1 . . . . . . . . . . . . . . . . . . . . . . Repair Stations . | . . . . . . . . . . . . . . . . . . . . . . . . . . . . Recycling Units 1 | . . . . . 1 . . . . . . . . . . . . . . . . . . . . . . Recyclers 1 | . . . . . 1 . . . . . . . . . . . . . . . . . . . . . . Scanalyzers . | . . . . . . . . . . . . . . . . . . . . . . . . . . . . Garrison Access . | . . . . . . . . . . . . . . . . . . . . . . . . . . . . Data Cores Recovered 2 | . . . . 1 . . . . . . . . . 1 . . . . . . . . . . . . . Used . | . . . . . . . . . . . . . . . . . . . . . . . . . . . . Hacking Detections 52 | . . 2 . 1 9 . 6 . . . . 7 2 11 . . 1 1 . . . . 6 1 . 4 1 Full Trace Events 19 | . . 2 . . 4 . 4 . . . . 2 2 2 . . . . . . . . 2 1 . . . Feedback Events 2 | . . . . . 1 . . . . . . . . . . . . . . . . . 1 . . . . Corruption 1 | . . . . . 1 . . . . . . . . . . . . . . . . . . . . . . Hackware Fried 1 | . . . . . . . . . . . . . . . . . . . . . . . 1 . . . . Feedback Blocked . | . . . . . . . . . . . . . . . . . . . . . . . . . . . . Robot Schematics Acquired 6 | . . . . . . . . . . 4 . . . . . . . 1 . . . . 1 . . . . Robots Built . | . . . . . . . . . . . . . . . . . . . . . . . . . . . . Authchips . | . . . . . . . . . . . . . . . . . . . . . . . . . . . . Time . | . . . . . . . . . . . . . . . . . . . . . . . . . . . . Total Robot Build Rating . | . . . . . . . . . . . . . . . . . . . . . . . . . . . . Part Schematics Acquired 20 | . . . . . . . . . . 11 . . . . . . . 1 . . 4 . 2 . . 2 . Parts Built 7 | . . . . . . . . . . . . 4 . . . . . . . . . . 1 1 . 1 . Authchips 2 | . . . . . . . . . . . . 1 . . . . . . . . . . . . . 1 . Time 338 | . . . . . . . . . . . . 167 . . . . . . . . . . 93 28 . 50 . Total Part Build Rating 48 | . . . . . . . . . . . . 30 . . . . . . . . . . 7 6 . 5 . Parts Repaired 3 | . . . . . . . . . . . . . . . . . . 3 . . . . . . . . . Time 152 | . . . . . . . . . . . . . . . . . . 152 . . . . . . . . . Parts Recycled . | . . . . . . . . . . . . . . . . . . . . . . . . . . . . Recycled Matter . | . . . . . . . . . . . . . . . . . . . . . . . . . . . . Retrieved Matter . | . . . . . . . . . . . . . . . . . . . . . . . . . . . . Retrieved Components 3 | . . . . . 3 . . . . . . . . . . . . . . . . . . . . . . Parts Scanalyzed 1 | . . . . . . . 1 . . . . . . . . . . . . . . . . . . . . Part Schematics Acquired . | . . . . . . . . . . . . . . . . . . . . . . . . . . . . Parts Damaged . | . . . . . . . . . . . . . . . . . . . . . . . . . . . . Bothacking | -11 -10 -9 -9 -8 -7 -7 -7 -7 -7 -7 -6 -6 -5 -5 -5 -5 -5 -4 -4 -4 -4 -3 -3 -3 -3 -2 -2 ------------ Run | Yrd Mat Mat Min Mat Fac Was Fac Low Low Dat Pro Fac Fac Ext Cet Arc Hub Fac Upp Upp Zhi Pro Res Arm Lab Res Gar Used RIF Installer . | . . . . . . . . . . . . . . . . . . . . . . . . . . . . Robots Hacked 2 | . . . . . . . . . . . . . . . . . . . . . . . . . 1 . 1 Non-combat . | . . . . . . . . . . . . . . . . . . . . . . . . . . . . Combat 2 | . . . . . . . . . . . . . . . . . . . . . . . . . 1 . 1 Robot Hacks Applied 1 | . . . . . . . . . . . . . . . . . . . . . . . . . 1 . . parse_system 1 | . . . . . . . . . . . . . . . . . . . . . . . . . 1 . . Manual 1 | . . . . . . . . . . . . . . . . . . . . . . . . . 1 . . Relay Couplers Released 1 | . . . . . 1 . . . . . . . . . . . . . . . . . . . . . . Machine Destruction 1 | . . . . . 1 . . . . . . . . . . . . . . . . . . . . . . Fabnet Peak Effective % 3 | . . . . . . . . . . . . . . . . . . . . . . . . . . 3 3 Autooverrided 1 | . . . . . . . . . . . . . . . . . . . . . . . . . . . 1 Robots Rewired 11 | . . . . . . . . . . . . . . 7 . . . . . . . . . 4 . . . Allies Hacked . | . . . . . . . . . . . . . . . . . . . . . . . . . . . . Hacks Repelled . | . . . . . . . . . . . . . . . . . . . . . . . . . . . . Allies | -11 -10 -9 -9 -8 -7 -7 -7 -7 -7 -7 -6 -6 -5 -5 -5 -5 -5 -4 -4 -4 -4 -3 -3 -3 -3 -2 -2 -------- Run | Yrd Mat Mat Min Mat Fac Was Fac Low Low Dat Pro Fac Fac Ext Cet Arc Hub Fac Upp Upp Zhi Pro Res Arm Lab Res Gar Total Allies 46 | . . . 2 . . 18 . . . . . . . 19 . . . . . 2 . . . 4 . . 1 Largest Group 18 | . . . 2 . . 18 13 . . . . . . 9 8 . . . . 2 . . . 4 . . 1 Highest-Rated Group 444 | . . . 41 . . 444 319 . . . . . . 343 205 . . . . 76 . . . 260 . . 58 Highest-Rated Ally 159 | . . . 31 . . 35 31 . . . . . . 159 39 . . . . 38 . . . 65 . . 58 Total Orders 2 | . . . . . 1 . 1 . . . . . . . . . . . . . . . . . . . . RETURN 2 | . . . . . 1 . 1 . . . . . . . . . . . . . . . . . . . . Ally Attacks 273 | . . . 3 . 2 102 48 . . . . . . 84 25 . . . . 4 . . . . . . 5 Total Damage 6971 | . . . 42 . . 2238 1698 . . . . . . 2063 631 . . . . 113 . . . . . . 186 Kills 44 | . . . 1 . . 8 14 . . . . . . 15 4 . . . . 1 . . . . . . 1 Allies Corrupted 4 | . . . . . . 1 . . . . . . . . . . . . . . . . . 3 . . . Allies Melted . | . . . . . . . . . . . . . . . . . . . . . . . . . . . . Intel | -11 -10 -9 -9 -8 -7 -7 -7 -7 -7 -7 -6 -6 -5 -5 -5 -5 -5 -4 -4 -4 -4 -3 -3 -3 -3 -2 -2 ------- Run | Yrd Mat Mat Min Mat Fac Was Fac Low Low Dat Pro Fac Fac Ext Cet Arc Hub Fac Upp Upp Zhi Pro Res Arm Lab Res Gar Robot Analysis Total 145 | . . . . . . . . . . 145 . . . . . . . . . . . . . . . . . Derelict Logs Recovered 10 | . . . 2 . . . . 3 . . 1 . . . . . . . 2 2 . . . . . . . Drone Launches 13 | . . . . . 3 . 10 . . . . . . . . . . . . . . . . . . . . Drone Recoveries 3 | . . . . . 1 . 2 . . . . . . . . . . . . . . . . . . . . Exploration | -11 -10 -9 -9 -8 -7 -7 -7 -7 -7 -7 -6 -6 -5 -5 -5 -5 -5 -4 -4 -4 -4 -3 -3 -3 -3 -2 -2 ------------- Run | Yrd Mat Mat Min Mat Fac Was Fac Low Low Dat Pro Fac Fac Ext Cet Arc Hub Fac Upp Upp Zhi Pro Res Arm Lab Res Gar Turns Passed 12058 | 9 20 103 288 166 656 149 878 350 361 110 200 358 109 816 566 479 107 499 1052 541 220 890 755 296 711 1258 111 Spaces Moved 9427 | 18 40 162 435 151 707 122 970 658 516 122 481 621 178 721 240 146 64 182 494 314 132 526 394 150 407 380 96 Core 860 | 18 40 162 435 23 . . 8 . . . . . . 23 1 . . . . . . . . . . 71 79 Treads 3331 | . . . . . . . . . . . . . . . 213 146 64 182 494 314 132 526 394 150 407 309 . Legs 9 | . . . . . . . . . . . . . . . 9 . . . . . . . . . . . . Wheels . | . . . . . . . . . . . . . . . . . . . . . . . . . . . . Hover 1704 | . . . . 128 707 122 747 . . . . . . . . . . . . . . . . . . . . Flight 3523 | . . . . . . . 215 658 516 122 481 621 178 698 17 . . . . . . . . . . . 17 Fastest Speed 29 | 50 50 50 50 50 56 56 32 32 32 29 32 34 37 37 120 160 160 160 160 160 160 160 160 145 145 50 37 Average Speed 90 | 50 50 50 50 69 69 57 58 32 32 31 33 37 43 54 159 160 160 160 160 160 160 160 160 150 150 224 49 Slowest Speed 550 | 50 50 50 100 240 180 116 200 104 32 32 34 117 117 450 400 160 160 160 160 160 160 160 160 225 160 550 100 Overloaded Moves 14 | . . . . . . . 12 . . 2 . . . . . . . . . . . . . . . . . Propulsion Burnouts . | . . . . . . . . . . . . . . . . . . . . . . . . . . . . Robots Hopped 17 | . . . . . . . 9 . 1 . . 3 . 4 . . . . . . . . . . . . . Cave-ins Triggered . | . . . . . . . . . . . . . . . . . . . . . . . . . . . . Teleports 2 | . . . . . . . . . . . . . . . . . . . . . . . . 1 . 1 . Exploration Rate (%) 43 | 3 18 23 89 18 26 71 24 65 65 77 69 18 5 59 65 81 24 6 66 57 60 85 15 9 99 16 17 Regions Visited 27 Branch Regions 15 Pre-discovered Areas 35 | . . . . . . . . 2 . 30 . . . . . . . . . . 3 . . . . . . Known Exits Taken 22 | . . 1 . 1 . . 1 1 1 1 1 1 1 1 1 1 1 1 1 1 1 1 1 1 1 1 . Unknown Exits Taken 3 | 1 1 . 1 . . . . . . . . . . . . . . . . . . . . . . . . Scrap Searched 15 | . . . 2 . . . . 3 1 . 2 . . . . . . . 4 2 . 1 . . . . . Spaces Dug 158 | . . . 27 . 3 4 13 1 . 20 . 10 5 17 . 1 2 1 16 3 . . 11 6 . 15 3 Terrain Destroyed 853 | . . . 93 33 3 4 13 63 . 20 81 10 21 228 9 4 2 1 53 20 . 50 31 6 23 27 58 Melee 117 | . . . . . 3 4 13 1 . 20 . 10 5 16 . . 2 1 16 3 . . 11 3 . 6 3 Projectile 47 | . . . . . . . . . . . . . . 10 9 4 . . . . . . . 3 . 21 . AOE 689 | . . . 93 33 . . . 62 . . 81 . 16 202 . . . . 37 17 . 50 20 . 23 . 55 Terrain Rammed . | . . . . . . . . . . . . . . . . . . . . . . . . . . . . Walls Destroyed . | . . . . . . . . . . . . . . . . . . . . . . . . . . . . Machines Disabled . | . . . . . . . . . . . . . . . . . . . . . . . . . . . . Actions | -11 -10 -9 -9 -8 -7 -7 -7 -7 -7 -7 -6 -6 -5 -5 -5 -5 -5 -4 -4 -4 -4 -3 -3 -3 -3 -2 -2 --------- Run | Yrd Mat Mat Min Mat Fac Was Fac Low Low Dat Pro Fac Fac Ext Cet Arc Hub Fac Upp Upp Zhi Pro Res Arm Lab Res Gar Total 12082 | 17 39 176 490 190 844 179 1213 777 707 159 501 724 196 1019 350 334 65 380 709 342 139 554 466 203 493 675 141 Wait 1631 | . . 1 29 8 72 37 173 90 185 16 3 63 3 145 32 131 . 173 183 16 1 15 23 16 37 163 16 Move 9371 | 17 39 161 434 150 707 121 953 657 513 121 480 615 177 712 239 145 63 181 493 313 131 525 393 149 406 380 96 Hop 14 | . . . . . . . 7 . 1 . . 2 . 4 . . . . . . . . . . . . . Pick Up 51 | . . 3 3 2 10 . 1 3 2 . . 6 1 . 1 . . 1 . . 1 . 9 4 4 . . Fast Attach 121 | . . 1 5 8 8 2 10 5 1 . 2 6 1 12 16 6 . 7 . 2 2 . 7 4 11 2 3 Attach 45 | . . . 3 . 3 . 6 4 . . . 1 1 1 3 1 . . . . . . 1 . 1 15 5 Detach 39 | . . . 1 1 3 . 8 1 . . . 2 1 3 2 . . . . . . . 1 1 5 7 3 Swap 68 | . . . . 2 4 4 1 4 1 . 3 1 2 15 3 3 . 1 2 3 1 2 1 7 2 6 . Drop 111 | . . . 1 5 16 2 12 2 2 . 2 12 2 6 9 6 . . . 2 2 . 1 7 15 7 . Fire 271 | . . 6 12 8 8 5 5 7 . . 11 . 2 25 45 33 . . 9 2 . 5 4 7 5 67 5 Melee 287 | . . . . 6 13 8 37 4 2 22 . 16 6 51 . 9 2 4 22 4 1 7 25 8 7 27 6 Ram 8 | . . 4 2 . . . . . . . . . . . . . . . . . . . . . . 1 1 Kick . | . . . . . . . . . . . . . . . . . . . . . . . . . . . . Crush 1 | . . . . . . . . . . . . . . . . . . . . . . . 1 . . . . Escape Stasis 23 | . . . . . . . . . . . . . . 17 . . . . . . . . . . . . 6 Rewire 25 | . . . . . . . . . . . . . . 25 . . . . . . . . . . . . . Trap 16 | . . . . . . . . . . . . . . 3 . . . 13 . . . . . . . . . Miscellaneous . | . . . . . . . . . . . . . . . . . . . . . . . . . . . . Route ------- -11/Scrapyard -10/Materials -9/Materials (discovered 2 exits: *Min x2) -9/Mines -8/Materials (discovered 3 exits: *Fac x2 / Sto) -7/Factory -7/Waste -7/Factory -7/Lower Caves -7/Lower Caves (discovered 2 exits: *Fac / *Dat) -7/Data Miner -6/Proximity Caves -6/Factory -5/Factory -5/Extension (discovered 2 exits: *Fac / *Cet) -5/Cetus (discovered 2 exits: *Fac / *Arc) -5/Archives (discovered 2 exits: *Fac / *Hub) -5/Hub_04(d) (discovered 4 exits: *Fac x4) -4/Factory (discovered 2 exits: *Upp x2) -4/Upper Caves -4/Upper Caves (discovered 2 exits: *Res / *Zhi) -4/Zhirov -3/Proximity Caves -3/Research (discovered 3 exits: *Arm / Tes x2) -3/Armory -3/Lab -2/Research (discovered 3 exits: Qua x2 / Gar) -2/Garrison (discovered 3 exits: Res x3) History --------- Turn | Location | Event 4 | -11/Scrapyard | Discovered new exit (range 12) 10 | -11/Scrapyard | Entered Materials 24 | -10/Materials | Discovered new exit (range 15) 30 | -10/Materials | Entered another Materials area 30 | -9/Materials | Evolved 2 slots: Utility x2 57 | -9/Materials | Identified exit to Mines 133 | -9/Materials | Entered Mines 138 | -9/Mines | Learned location of 2 exits from Materials 163 | -9/Mines | Met a Derelict bent on vengeance 176 | -9/Mines | Assembled infested the area 243 | -9/Mines | Found a damaged Exp. Sensor Array with a note attached 244 | -9/Mines | Found Prototype Device 244 | -9/Mines | Identified Exp. Sensor Array 263 | -9/Mines | Found the Drone Emporium 265 | -9/Mines | Found Prototype Device 265 | -9/Mines | Identified Bomb Drone Bay 319 | -9/Mines | Build established: Mutant 336 | -9/Mines | Core integrity fell below 50% 400 | -9/Mines | Discovered new exit (range 15) 421 | -9/Mines | Entered Materials 421 | -8/Materials | Evolved 2 slots: Utility x2 422 | -8/Materials | Identified exit to Factory 423 | -8/Materials | Identified exit to Storage 587 | -8/Materials | Entered Factory 587 | -7/Factory | Evolved 2 slots: Utility x2 1032 | -7/Factory | Discovered new exit (range 12) 1038 | -7/Factory | Identified exit to Lower Caves 1243 | -7/Factory | Manually triggered Chute Trap 1243 | -7/Factory | Sucked down chute 1243 | -7/Factory | Entered Waste 1247 | -7/Waste | Spotted C-40 Crusher 1249 | -7/Waste | Spotted C-40 Crusher 1252 | -7/Waste | Spotted C-40 Crusher 1279 | -7/Waste | Warlord forces began an assault 1283 | -7/Waste | Spotted C-40 Crusher 1289 | -7/Waste | Allies destroyed C-40 Crusher 1296 | -7/Waste | Allies destroyed C-40 Crusher 1303 | -7/Waste | Spotted C-40 Crusher 1309 | -7/Waste | Allies destroyed C-40 Crusher 1321 | -7/Waste | Spotted C-40 Crusher 1329 | -7/Waste | Allies destroyed C-40 Crusher 1345 | -7/Waste | Discovered new exit (range 12) 1385 | -7/Waste | Identified exit to Factory 1392 | -7/Waste | Entered Factory 1392 | -7/Factory | Accompanied by 13 allies 1711 | -7/Factory | Lost 13 allies 2054 | -7/Factory | Build established: Gladiator 2129 | -7/Factory | Cargo convoy interrupted 2163 | -7/Factory | Lost 8 allies 2215 | -7/Factory | Found Prototype Launcher 2215 | -7/Factory | Identified Mni. Smartbomb Launcher 2250 | -7/Factory | Discovered exit to Lower Caves (range 16) 2270 | -7/Factory | Entered Lower Caves 2300 | -7/Lower Caves | Learned location of Extension (-5) 2301 | -7/Lower Caves | Learned Factory emergency access door positions 2319 | -7/Lower Caves | Learned location of Zion (-6) 2329 | -7/Lower Caves | Encountered a Warlord checkpoint 2570 | -7/Lower Caves | Build established: Sprinter 2617 | -7/Lower Caves | Discovered new exit (range 10) 2620 | -7/Lower Caves | Identified exit to Lower Caves 2620 | -7/Lower Caves | Entered another Lower Caves area 2648 | -7/Lower Caves | Discovered new exit (range 9) 2650 | -7/Lower Caves | Identified exit to Factory 2976 | -7/Lower Caves | Discovered new exit (range 9) 2981 | -7/Lower Caves | Identified exit to Data Miner 2981 | -7/Lower Caves | Entered Data Miner 2981 | -7/Data Miner | Discovered new exit (range 6) 2988 | -7/Data Miner | Met Data Miner 2993 | -7/Data Miner | Learned location of Section 7 (-2) 2993 | -7/Data Miner | Acquired the access code to Warlord's prototype stash 2998 | -7/Data Miner | Received God Mode back door access code from Data Miner 3022 | -7/Data Miner | Destroyed Data Miner 3024 | -7/Data Miner | Interfaced with the Data Conduit 3091 | -7/Data Miner | Identified exit to Proximity Caves 3091 | -7/Data Miner | Entered Proximity Caves 3151 | -6/Proximity Caves | Learned Factory emergency access door positions 3273 | -6/Proximity Caves | Spotter reported a threat 3286 | -6/Proximity Caves | Discovered exit to Factory (range 14) 3289 | -6/Proximity Caves | Destroyed 9 combat bots 3291 | -6/Proximity Caves | Entered Factory 3291 | -6/Factory | Evolved 2 slots: Utility x2 3293 | -6/Factory | Loaded intel: 231 machine locations 3336 | -6/Factory | Fabricated Impulse Thruster (x2) 3404 | -6/Factory | Build established: Mutant 3465 | -6/Factory | Fabricated Linear Accelerator (x2) 3641 | -6/Factory | Search patrols dispatched 3647 | -6/Factory | Discovered new exit (range 8) 3649 | -6/Factory | Identified exit to Factory 3649 | -6/Factory | Entered another Factory area 3649 | -5/Factory | Evolved 2 slots: Utility x2 3651 | -5/Factory | Loaded intel: 243 machine locations 3718 | -5/Factory | Discovered new exit (range 6) 3719 | -5/Factory | Identified exit to Extension 3758 | -5/Factory | Entered Extension 3759 | -5/Extension | Loaded intel: 44 machine locations 3779 | -5/Extension | Rescued a captive Derelict 3997 | -5/Extension | Rescued A7 4010 | -5/Extension | Rescued a captive Derelict 4012 | -5/Extension | Rescued a captive Derelict 4033 | -5/Extension | Rescued a captive Derelict 4034 | -5/Extension | Rescued a captive Derelict 4058 | -5/Extension | First assault squad dispatched 4281 | -5/Extension | Rescued a captive Derelict 4390 | -5/Extension | Rescued a captive Derelict 4466 | -5/Extension | Rescued a captive Derelict 4467 | -5/Extension | Rescued a captive Derelict 4491 | -5/Extension | Extracted ID and sensor layout for unrecognized location from A7's data core 4503 | -5/Extension | Rescued a captive Derelict 4504 | -5/Extension | Rescued a captive Derelict 4522 | -5/Extension | Discovered new exit (range 10) 4522 | -5/Extension | Discovered new exit (range 6) 4528 | -5/Extension | Identified exit to Factory 4569 | -5/Extension | Identified exit to Cetus 4574 | -5/Extension | Entered Cetus 4574 | -5/Cetus | Accompanied by 8 allies 4575 | -5/Cetus | Loaded intel: 24 machine locations 4606 | -5/Cetus | Spotted Cetus Guard 4606 | -5/Cetus | Spotted Cetus Guard 4607 | -5/Cetus | Spotted Cetus Guard 4607 | -5/Cetus | Spotted Cetus Guard 4618 | -5/Cetus | Allies destroyed Cetus Guard 4622 | -5/Cetus | Allies destroyed Cetus Guard 4636 | -5/Cetus | Allies destroyed Cetus Guard 4642 | -5/Cetus | Destroyed Cetus Guard 4655 | -5/Cetus | Lost 3 parts (1n2u) 4665 | -5/Cetus | Lost 5 allies 4768 | -5/Cetus | Discovered new exit (range 17) 4938 | -5/Cetus | Spotted Cetus Guard 4939 | -5/Cetus | Spotted Cetus Guard 4942 | -5/Cetus | Build established: Scavenger-Mutant 4942 | -5/Cetus | Spotted Cetus Guard 4943 | -5/Cetus | Spotted Cetus Guard 4969 | -5/Cetus | Destroyed Cetus Guard 4975 | -5/Cetus | Destroyed Cetus Guard 4980 | -5/Cetus | Lost 3 allies 5002 | -5/Cetus | Destroyed Cetus Guard 5032 | -5/Cetus | Destroyed Cetus Guard 5063 | -5/Cetus | Discovered exit to Factory (range 17) 5082 | -5/Cetus | Met Revision 17 5139 | -5/Cetus | Identified exit to Archives 5140 | -5/Cetus | Entered Archives 5141 | -5/Archives | Loaded intel: 8 machine locations 5498 | -5/Archives | Discovered exit to Factory (range 15) 5521 | -5/Archives | Discovered new exit (range 15) 5618 | -5/Archives | Identified exit to Hub_04(d) 5619 | -5/Archives | Entered Hub_04(d) 5620 | -5/Hub_04(d) | Loaded intel: 75 machine locations 5655 | -5/Hub_04(d) | Network Hub disabled 5686 | -5/Hub_04(d) | Network Hub disabled 5718 | -5/Hub_04(d) | Spotted Lightning 5721 | -5/Hub_04(d) | Spotted Lightning 5726 | -5/Hub_04(d) | Entered Factory 5726 | -4/Factory | Evolved 2 slots: Utility x2 5727 | -4/Factory | Loaded intel: 262 machine locations 5822 | -4/Factory | Repaired Ionic Axe 5855 | -4/Factory | Build established: Wizard-Mutant 5896 | -4/Factory | Repaired Centrium Medium Armor Plating 5952 | -4/Factory | Repaired Centrium Medium Armor Plating 5995 | -4/Factory | Identified exit to Upper Caves 6225 | -4/Factory | Entered Upper Caves 6931 | -4/Upper Caves | Spotted B-86 Titan 7103 | -4/Upper Caves | Learned Research interactive machine intel 7209 | -4/Upper Caves | Identified exit to Upper Caves 7277 | -4/Upper Caves | Entered another Upper Caves area 7291 | -4/Upper Caves | Discovered new exit (range 10) 7312 | -4/Upper Caves | Learned location of 1 exit from Research 7331 | -4/Upper Caves | A Commander dispatched an escort 7337 | -4/Upper Caves | Learned location of 1 exit from Factory 7337 | -4/Upper Caves | Learned Factory security intel 7337 | -4/Upper Caves | Learned Research security intel 7472 | -4/Upper Caves | Attracted the attention of an 0b10 checkpoint 7701 | -4/Upper Caves | Discovered new exit (range 17) 7784 | -4/Upper Caves | Learned location of 1 exit from Research 7807 | -4/Upper Caves | Identified exit to Zhirov 7818 | -4/Upper Caves | Entered Zhirov 7818 | -4/Zhirov | Accompanied by 2 allies 7818 | -4/Zhirov | Discovered new exit (range 3) 7819 | -4/Zhirov | Commander's escort returned to base 7819 | -4/Zhirov | Commander's escort returned to base 7847 | -4/Zhirov | Met Zhirov 7894 | -4/Zhirov | Zhirov requested help retrieving the SGEMP Prototype 7919 | -4/Zhirov | Found Alien Artifact 7919 | -4/Zhirov | Identified Integrated Reactor 7919 | -4/Zhirov | Installed Integrated Reactor, increased core energy generation (+10) 7978 | -4/Zhirov | Found Alien Artifact 8036 | -4/Zhirov | Identified exit to Proximity Caves 8038 | -4/Zhirov | Entered Proximity Caves 8040 | -3/Proximity Caves | Spotter reported a threat 8041 | -3/Proximity Caves | Spotter reported a threat 8517 | -3/Proximity Caves | Attracted the attention of an 0b10 checkpoint 8910 | -3/Proximity Caves | Discovered new exit (range 2) 8910 | -3/Proximity Caves | Identified exit to Research 8928 | -3/Proximity Caves | Entered Research 8928 | -3/Research | Evolved 2 slots: Utility x2 8929 | -3/Research | Identified exit to Testing 8931 | -3/Research | Loaded intel: 124 machine locations 8932 | -3/Research | Loaded intel: 44 interactive machine locations 8988 | -3/Research | Hacking Suite fried by hacking feedback 9066 | -3/Research | Fabricated Exp. Hacking Suite? 9131 | -3/Research | Revision forces began assault on 0b10 9136 | -3/Research | Met up with Revision 17++ 9311 | -3/Research | Identified exit to Armory 9400 | -3/Research | Lost 4 allies 9525 | -3/Research | Intercept squad dispatched 9631 | -3/Research | Research terminal network offline 9683 | -3/Research | Entered Armory 9684 | -3/Armory | Loaded intel: 94 machine locations 9823 | -3/Armory | Lost 3 allies 9862 | -3/Armory | Fabricated Exp. Heat Sink (x1) 9905 | -3/Armory | Identified Transdimensional Reconstructor 9905 | -3/Armory | Warped through subspace to slip node 9905 | -3/Armory | Discovered new exit (range 1) 9905 | -3/Armory | Identified exit to Lab 9979 | -3/Armory | Entered Lab 9979 | -3/Lab | Discovered new exit (range 9) 9990 | -3/Lab | Identified exit to Research 9995 | -3/Lab | Hidden lab's door opened automatically 9995 | -3/Lab | Sensor layout match revealed 9996 | -3/Lab | Gained access to the hidden lab's interior 10039 | -3/Lab | Found Prototype Special Weapon 10039 | -3/Lab | Identified Gui. Remote Datajack 10078 | -3/Lab | Decrypted terminal 10078 | -3/Lab | Acquired modification code for an L2 power cell 10129 | -3/Lab | Found Prototype Energy Cannon 10129 | -3/Lab | Identified Warp Cannon 10138 | -3/Lab | Found Prototype Energy Gun 10138 | -3/Lab | Identified Hyp. EM Gauss Rifle 10146 | -3/Lab | Found Prototype Device 10146 | -3/Lab | Identified AEGIS Remote Shield 10151 | -3/Lab | Found Prototype Hackware 10151 | -3/Lab | Identified Deep Network Scanner 10185 | -3/Lab | Found Alien Artifact 10185 | -3/Lab | Identified Integrated Dissipator 10185 | -3/Lab | Installed Integrated Dissipator, increased core heat dissipation (+20) 10208 | -3/Lab | Found Alien Artifact 10217 | -3/Lab | Found Transdimensional Reconstructor 10304 | -3/Lab | Detected by scanners 10313 | -3/Lab | Confronted by A5 10313 | -3/Lab | Destroyed A5 with code downloaded from Data Conduit 10316 | -3/Lab | Disabled Active System Cloaker 10322 | -3/Lab | MAIN.C forces arrive to investigate 10434 | -3/Lab | Decrypted terminal 10440 | -3/Lab | Decrypted terminal 10441 | -3/Lab | Decrypted terminal 10442 | -3/Lab | Decrypted terminal 10443 | -3/Lab | Found Alien Artifact 10443 | -3/Lab | Identified LC Capacitor 10690 | -3/Lab | Entered Research 10690 | -2/Research | Evolved 2 slots: Utility x2 10691 | -2/Research | Loaded intel: 100 machine locations 10729 | -2/Research | Fabricated Exp. Utility Shielding (x1) 10775 | -2/Research | Identified Core Regenerator 10853 | -2/Research | Identified exit to Quarantine 11292 | -2/Research | Spotted B-90 Cyclops 11610 | -2/Research | Intercept squad dispatched 11624 | -2/Research | Spotted Tracker 11624 | -2/Research | Spotted Tracker 11650 | -2/Research | Destroyed Tracker 11652 | -2/Research | Destroyed Tracker 11657 | -2/Research | Spotted Combat Programmer 11659 | -2/Research | Spotted Combat Programmer 11673 | -2/Research | System corruption reached 10% 11713 | -2/Research | System corruption reached 30% 11717 | -2/Research | Warped through subspace 11733 | -2/Research | Lost 8 parts (1p2n3u2w) 11785 | -2/Research | Used Core Regenerator, restored core integrity (+362) 11948 | -2/Research | Identified exit to Garrison 11948 | -2/Research | Entered Garrison 11949 | -2/Garrison | Loaded intel: 27 machine locations 11952 | -2/Garrison | Triggered checkpoint 11971 | -2/Garrison | Core integrity fell below 50% 11998 | -2/Garrison | Identified exit to Research 11999 | -2/Garrison | Local machine network offline 12004 | -2/Garrison | Triggered checkpoint 12050 | -2/Garrison | Core integrity fell below 20% 12059 | -2/Garrison | Destroyed by G-73 Enforcer with Phase Gun Last Messages --------------- >>Force(Override) SYSTEM_OVERRIDE[3] COORDINATES_EXTRACTED 11998_ ALERT: Suspicious activity at Terminal G002. Transmitting hostile system tracking data. 11999_ ALERT: Suspected network compromise, local machines offline for diagnostic review. 12004_ Beams of light sweep through the air. An alarm sounds. 12005_ Imp. Hacking Suite destroyed. 12007_ System corrupted: IFF burst signal emitted. 12016_ Slug penetrates Wall. 12022_ Machine disabled. 12023_ System corrupted: Heat flow error (+297). 12023_ Imp. Hacking Suite destroyed. 12039_ Thunder Hammer destroyed. 12048_ System corrupted: Energy discharge (-22). 12052_ Penetrated by Slug. 12055_ Enh. Optical Array destroyed. 12056_ The unstable cave ceiling collapses. 12056_ G-73 Enforcer crushed by falling debris. Map ----- +----------------------------------------------------+ | ????????????????????????"???????????????? | | ????????????????????????????????????????? | | ????????????????????????????????????????? | | ???????????????????????????"????????????? | | ???????????????????????????"????????????? | | ???????????????????????????"????????????? | | ???????????????????????????"????????????? | | ???????????????????????????"????????????? | | ????????????????????????????????????????? | | ????????????????????????????????????????? | | ????????????????????????????????????????? | | ????????????????????????????????????????? | | ????????????????????????????????????????? | | ?????????????????????????????????###????? | | ????????????????????????????????? ????? | | ????????????????????????????????? ????? | | ????????????????????????????????? #????? | | ????????????????????????????????? #????? | | ????????????????????????????????# #????? | | ??????????????????????########### #????? | | ??????????????????????# + | | ????????????????????### ######### #????? | | ????????????????????# [ ######### ###??? | | ???????????????###??# = " # #### | | ???????????????# #??# ###### # | | ??????????????##@#??### #????# ?? | | ??????????????#gY#????# #????# # #??? | | ??????????????##g##???# #????# #??? | | ??????????????#pT"##### ###### #??? | | ??????????????#"gs #???? | | ??????????????########### ### ##???? | | ???????????????????????#"""""#### #????? | | ???????????????????????#######??# #????? | | ????????????????####?####???????# #????? | | ??????????????### ## #???????# #????? | | ??????????????# # ####????# #????? | | ??????????????# # ###### #????? | | ??????????????# * #????? | | ??????????????### = #????? | | ??????????????# % #########????? | | ??????????????# #[ #????????????? | | ??????????????# # #### #????????????? | | ??????????????# ###???###????????????? | | ??????????????### #????????????????????? | | ????????????????# #????????????????????? | | ????????????????# #????????????????????? | | ???????????????? #????????????????????? | | ???????????????? #????????????????????? | | ???????????????? ?????????????????????? | | ???????????????####?????????????????????? | +----------------------------------------------------+ Best States ------------- Heat Dissipation 118 Energy Generation 43 Energy Capacity 350 Matter Stores 300 Matter Capacity 300 Sight Range 22 Robot Scan Range 20 Terrain Scan Density 10 Power Amplification 40 Additional Mass Support 12 Base Temperature (-) 200 Armor Coverage 2100 Propulsion Shielding 66 Utility Shielding 90 Phase Shifting 5 Evasion (%) 71 Targeting Accuracy 8 Melee Accuracy 5 Recoil Reduction 2 Energy Filtering 50 Offensive Hacking 91 Defensive Hacking 12 Authchip Count 3 Trap Extractor Capacity 8 Item Schematics ----------------- Combat Drone Bay | -7/Data Miner | Free Lgt. Regenerative Plating | -7/Data Miner | Free Exp. Utility Shielding | -7/Data Miner | Free Gyrokinetic Inverter | -7/Data Miner | Free Smartbomb Launcher | -7/Data Miner | Free Wave Gun | -7/Data Miner | Free Adv. Medium Treads | -7/Data Miner | Free Imp. Proton Missile Launcher | -7/Data Miner | Free Adv. System Shield | -7/Data Miner | Free Shock Maul | -7/Data Miner | Free Cld. Aerolev Unit | -7/Data Miner | Free Exp. Hacking Suite | -4/Factory | Hacked Assault Drone Bay | -4/Zhirov | Free Exp. Heat Sink | -4/Zhirov | Free Exp. Optical Array | -4/Zhirov | Free Imp. Arc Thrower | -4/Zhirov | Free Enh. Nova Cannon | -3/Research | Hacked Arm. Heavy Treads | -3/Research | Hacked Hdn. Centrium Heavy Treads | -2/Research | Hacked Imp. Quantum Reactor | -2/Research | Hacked Robot Schematics ------------------ W-25 Informer | -7/Data Miner | Free E-15 Imp | -7/Data Miner | Free B-48 Gladiator | -7/Data Miner | Free H-55 Commando | -7/Data Miner | Free A-27 Freighter | -4/Factory | Hacked M-36 Artificer | -3/Research | Hacked Fabricated ------------ Impulse Thruster | x2 | -6/Factory | Preloaded, Authchip Linear Accelerator | x2 | -6/Factory | Preloaded Exp. Hacking Suite | x1 | -3/Research Exp. Heat Sink | x1 | -3/Armory Exp. Utility Shielding | x1 | -2/Research | Authchip Alien Tech Used ----------------- Integrated Reactor Transdimensional Reconstructor Integrated Dissipator LC Capacitor Core Regenerator Achievements -------------- Maximum Efficiency Challenges ------------ None Game ------ Seed ImprovedBlastSubcomponent Manual? 0 Play Time 02:57:10 Cumulative 245.5 hours Start 2024.08.14 @ 18:55:16 End 2024.08.17 @ 16:39:02 Sessions 12 Manual Loads 0 Difficulty Rogue Special Mode None Game No. 123 Rogue 123 Adventurer 0 Explorer 0 Win Type - Total 8 Types 4/1/3/0/0/0/0/0/0 Lore% 74 Gallery% 84 Achievement% 70 Wizard Run 0 Options --------- Layout 0 ASCII 0 Keyboard 0 Movement Mouse Keybinds 0 Fullscreen 2 Font 18/SmallcapsGlow Map View 76x50 Zoom Use 0% Tactical HUD 1 Map Filters NONE Filters NONE Steam 1 RUN: 7e2efdb6-5ef3-4e2d-8244-dfce05276dc1